bitfinex-derivatives/quotes_ETHF0:USTF0_20240923
["timestamp","ask_amount","ask_price","bid_price","bid_amount"]
[1727072878411,0.5308,2655.8,2655.6,0.96947]
[1727072879825,0.5308,2655.8,2655.5,0.5927]
[1727072879826,1.50890354,2655.8,2655.5,0.96928]
[1727072880613,1.50890354,2655.8,2655.6,0.37657]
[1727072881124,1.50890354,2655.8,2655.5,0.96929]
[1727072882526,1.50890354,2655.8,2655.6,0.37657]
[1727072883728,0.97810354,2655.8,2655.7,0.37656]
[1727072883926,2.01140354,2655.9,2655.7,0.37656]
[1727072884123,0.97810354,2655.9,2655.8,0.37655]
[1727072884327,0.97810354,2655.9,2655.5,0.5927]
[1727072884328,0.97810354,2656.0,2655.9,0.37653]
[1727072884627,1.46712698,2656.1,2655.9,0.37653]
[1727072884628,0.97810354,2656.1,2655.9,0.37653]
[1727072884828,0.97810354,2656.1,2656.0,0.5423]
[1727072885924,0.97810354,2656.1,2656.0,0.91882]
[1727072886123,1.46712698,2656.2,2656.1,0.37651]
[1727072886124,0.97810354,2656.2,2656.1,0.37651]
[1727072886328,0.97810354,2656.2,2656.1,0.89281]
[1727072886531,0.97810354,2656.3,2656.1,1.36391]
[1727072887330,0.97810354,2656.2,2656.1,1.36391]
[1727072887532,0.97810354,2656.2,2656.1,0.9874]
[1727072888227,0.97810354,2656.2,2656.1,1.36391]
[1727072888536,0.97810354,2656.2,2656.1,0.84761]
[1727072888735,0.97810354,2656.2,2656.1,0.4711]
[1727072889036,0.97810354,2656.2,2656.1,0.84761]
[1727072891228,1.46712698,2656.2,2656.1,0.84761]
[1727072892324,5.05516555,2656.5,2656.1,0.84761]
[1727072892325,0.97983999,2656.5,2656.1,14.85168429]
[1727072892524,0.97983999,2656.7,2656.4,3.2078]
[1727072892827,0.97983999,2656.9,2656.8,0.37641]
[1727072893028,0.97983999,2657.2,2656.8,7.83776858]
[1727072893232,0.97983999,2657.2,2657.0,1.36242673]
[1727072893436,0.97983999,2657.3,2657.1,0.5581]
[1727072893633,1.52723999,2657.4,2657.2,40.8]
[1727072894136,0.97983999,2657.3,2657.2,40.8]
[1727072894433,1.52723999,2657.4,2657.2,40.8]
[1727072895030,3.41617999,2657.3,2657.2,40.8]
[1727072895526,2.43634,2657.3,2657.2,40.8]
[1727072896032,2.43634,2657.3,2656.8,0.5581]
[1727072896237,3.41617999,2657.3,2656.8,0.5581]
[1727072896435,2.43634,2657.3,2656.9,40.8]
[1727072897236,2.43634,2657.3,2656.8,0.5581]
[1727072897834,0.37636,2657.2,2656.8,0.5581]
[1727072898237,0.5056,2657.1,2656.8,0.5581]
[1727072902539,0.5056,2657.1,2656.8,0.9345]
[1727072902939,0.5056,2657.1,2656.9,0.37639]
[1727072903340,0.5474,2657.4,2657.1,0.37636]
[1727072903849,0.5474,2657.4,2657.1,0.89326]
[1727072904047,0.5474,2657.4,2657.1,0.5169]
[1727072904247,0.5474,2657.4,2656.8,0.5581]
[1727072904248,2.6074,2657.4,2656.8,0.5581]
[1727072904547,0.37636,2657.2,2656.8,0.5581]
[1727072904747,0.37636,2657.2,2656.8,41.3581]
[1727072904952,0.5072,2657.1,2656.8,41.3581]
[1727072905543,0.5072,2657.1,2656.8,41.7345]
[1727072905848,0.5072,2657.1,2656.8,0.5581]
[1727072907271,0.3757,2657.0,2656.8,0.5581]
[1727072908450,0.366,2656.9,2656.8,0.5581]
[1727072914344,0.8909,2657.1,2656.8,0.93451]
[1727072915245,3.2078,2657.3,2657.1,0.37636]
[1727072915448,3.2078,2657.3,2657.2,0.3821]
[1727072915957,3.2078,2657.3,2657.2,1.14565]
[1727072916256,0.3871,2657.4,2657.2,1.14565]
[1727072916449,0.3871,2657.4,2657.3,0.369]
[1727072917049,9.4181,2657.4,2656.5,2.06]
[1727072917252,0.37635,2657.2,2656.8,3.5937]
[1727072917650,0.37635,2657.2,2656.8,0.3859]
[1727072917852,0.37635,2657.2,2656.8,0.76231]
[1727072918554,0.37637,2657.1,2656.8,0.3859]
[1727072918852,0.3805,2657.0,2656.8,0.3859]
[1727072919051,0.7672,2657.0,2656.8,0.3859]
[1727072919858,1.14358,2657.0,2656.8,0.3859]
[1727072920662,1.14358,2657.0,2656.6,40.8]
[1727072921347,1.14358,2657.0,2656.6,41.17643]
[1727072921750,1.14358,2657.0,2656.6,40.8]
[1727072922766,0.37639,2656.9,2656.6,40.8]
[1727072922957,2.8272,2657.0,2656.6,40.8]
[1727072923153,2.43643,2656.7,2656.5,0.3683]
[1727072923454,0.3853,2656.6,2656.5,0.3683]
[1727072928453,4.18763999,2656.8,2656.5,0.3683]
[1727072928662,4.18763999,2656.8,2656.6,0.359]
[1727072928853,4.18763999,2656.8,2656.6,0.7368]
[1727072929965,4.56404999,2656.8,2656.6,0.7368]
[1727072930559,4.18763999,2656.8,2656.6,0.3778]
[1727072930859,0.97983999,2656.9,2656.7,0.37642]
[1727072931055,0.97983999,2657.0,2656.8,0.3612]
[1727072931259,0.97983999,2657.1,2656.8,0.3612]
[1727072931466,0.97983999,2657.1,2656.8,0.7376]
[1727072931659,0.97983999,2657.0,2656.9,0.37639]
[1727072932063,0.97983999,2657.1,2656.9,0.37639]
[1727072932558,1.83002698,2657.2,2657.0,0.3667]
[1727072932760,0.97978279,2657.1,2657.0,0.3667]
[1727072933067,0.97978279,2657.2,2657.0,0.74308]
[1727072933755,0.97978279,2657.2,2657.1,0.37636]
[1727072933958,1.46712698,2657.4,2657.1,0.37636]
[1727072933959,0.97978279,2657.4,2657.1,0.37636]
[1727072934257,0.97978279,2657.4,2657.0,0.3667]
[1727072934450,0.97978279,2657.3,2657.1,0.37635]
[1727072934654,0.97978279,2657.3,2657.0,0.74307]
[1727072935052,1.37488279,2657.3,2657.0,0.74307]
[1727072936060,0.97978279,2657.3,2657.0,0.3667]
[1727072936266,0.97978279,2657.4,2657.3,0.37634]
[1727072936456,0.97978279,2657.5,2657.4,0.37632]
[1727072936855,1.86222698,2657.7,2657.4,0.37632]
[1727072936856,0.97978279,2657.6,2657.4,0.37632]
[1727072937158,0.97978279,2657.6,2657.5,41.93221]
[1727072937361,1.37488279,2657.7,2657.5,41.5559]
[1727072937564,1.37488279,2657.7,2657.5,41.93221]
[1727072938063,1.37488279,2657.7,2657.5,41.5559]
[1727072938262,0.97978279,2657.6,2657.5,41.5559]
[1727072938464,0.97978279,2657.6,2657.5,41.1692]
[1727072938661,0.97978279,2657.6,2657.2,1.37274673]
[1727072938966,0.97978279,2657.6,2657.3,0.3705]
[1727072939168,0.97978279,2657.6,2657.4,40.8]
[1727072939169,1.35607279,2657.6,2657.4,40.8]
[1727072939368,0.97978279,2657.5,2657.3,0.3705]
[1727072939765,0.97978279,2657.6,2657.3,0.3705]
[1727072939966,0.97978279,2657.5,2657.3,41.1705]
[1727072940463,1.86222698,2657.7,2657.3,41.1705]
[1727072940464,0.97978279,2657.6,2657.3,41.1705]
[1727072941071,0.97978279,2657.5,2657.3,41.1705]
[1727072941667,1.37188279,2657.4,2657.3,41.1705]
[1727072941862,1.37188279,2657.4,2657.0,3.58417]
[1727072942169,0.3897,2657.3,2657.1,0.74456]
[1727072942366,0.3897,2657.3,2657.1,41.54456]
[1727072942767,0.3897,2657.3,2657.2,0.37635]
[1727072942966,0.97978279,2657.4,2657.2,0.37635]
[1727072943569,0.97978279,2657.5,2657.2,0.37635]
[1727072944269,0.97978279,2657.4,2657.2,0.37635]
[1727072944776,0.97978279,2657.5,2657.2,0.37635]
[1727072945072,1.33888279,2657.6,2657.1,41.1682]
[1727072945572,1.33888279,2657.6,2657.2,0.37635]
[1727072945966,1.33888279,2657.6,2657.3,0.37633]
[1727072946172,1.33888279,2657.6,2657.2,0.37634]
[1727072946372,3.77518279,2657.6,2657.1,41.54456]
[1727072946567,0.97978279,2657.5,2657.2,0.37635]
[1727072946877,0.97978279,2657.5,2657.2,0.75195]
[1727072947075,0.97978279,2657.5,2657.2,0.3756]
[1727072947373,2.79539,2657.6,2657.2,0.75195]
[1727072947374,3.77517279,2657.6,2657.2,0.75195]
[1727072947875,0.97978279,2657.5,2657.2,0.75195]
[1727072948577,1.33888279,2657.6,2657.2,0.75195]
[1727072949372,1.33888279,2657.6,2657.3,0.37634]
[1727072949677,1.33888279,2657.6,2657.2,0.75194]
[1727072950075,0.97978279,2657.5,2657.2,0.75194]
[1727072950473,1.33888279,2657.6,2657.2,0.75194]
[1727072950782,0.37635,2657.2,2656.8,0.98604673]
[1727072951075,0.7449,2657.1,2656.8,0.37641]
[1727072951375,0.7449,2657.1,2656.9,40.8]
[1727072951976,0.3761,2657.1,2656.9,41.17639]
[1727072953067,0.7514,2657.3,2656.9,41.17639]
[1727072953271,1.1286,2657.3,2656.9,41.17639]
[1727072953478,0.3772,2657.3,2656.9,41.17639]
[1727072953674,0.3772,2657.3,2656.9,40.8]
[1727072953875,0.3772,2657.3,2656.9,41.17639]
[1727072954181,0.97978279,2657.4,2657.2,0.37634]
[1727072954372,0.97978279,2657.4,2657.3,0.7611]
[1727072955476,1.73178279,2657.5,2657.3,0.7611]
[1727072955774,0.97978279,2657.8,2657.5,0.37631]
[1727072955978,1.35628279,2657.8,2657.5,0.37631]
[1727072956677,1.35628279,2657.8,2657.6,40.8]
[1727072956678,0.3765,2657.8,2657.6,40.8]
[1727072957976,1.73255279,2657.8,2657.6,40.8]
[1727072958571,1.35628279,2657.8,2657.6,40.8]
[1727072958768,1.73255279,2657.8,2657.6,40.8]
[1727072959179,1.35628279,2657.8,2657.6,40.8]
[1727072962279,0.3765,2657.8,2657.6,40.8]
[1727072962587,1.35628279,2657.8,2657.6,40.8]
[1727072963474,0.3765,2657.8,2657.6,40.8]
[1727072966284,0.75277,2657.8,2657.6,40.8]
[1727072967091,0.3765,2657.8,2657.6,40.8]
[1727072967493,1.73255279,2657.8,2657.6,40.8]
[1727072968790,1.35628279,2657.8,2657.6,40.8]
[1727072970490,1.35628279,2657.8,2657.6,41.17629]
[1727072970691,0.97978279,2657.9,2657.7,0.3764]
[1727072970995,0.97978279,2657.9,2657.8,0.3851]
[1727072972589,1.46712698,2657.9,2657.8,0.3851]
[1727072976398,2.33042258,2658.0,2657.8,0.3851]
[1727072976993,1.47134804,2657.9,2657.8,0.7561]
[1727072977393,0.98097692,2657.9,2657.8,1.13236]
[1727072977991,0.98097692,2657.9,2657.8,5.84476]
[1727072978291,0.98097692,2658.0,2657.8,1.13236]
[1727072978492,0.98097692,2657.9,2657.8,1.13236]
[1727072978902,0.98097692,2657.9,2657.8,0.7561]
[1727072979205,0.98097692,2657.9,2657.8,0.3851]
[1727072979402,1.35827692,2657.9,2657.8,0.3851]
[1727072979594,1.35827692,2657.9,2657.7,0.3764]
[1727072979595,0.3773,2657.9,2657.7,0.3764]
[1727072979801,1.47163022,2657.8,2657.7,0.3764]
[1727072980903,1.84790022,2657.8,2657.6,41.171]
[1727072981105,0.98112817,2657.7,2657.6,0.371]
[1727072981601,0.98112817,2657.7,2657.5,41.5626]
[1727072981602,0.98116761,2657.7,2657.5,41.5626]
[1727072981807,0.98117567,2657.6,2657.5,41.5626]
[1727072981996,0.98117567,2657.7,2657.5,41.5626]
[1727072982402,0.98117567,2657.7,2657.5,0.7626]
[1727072983001,0.98117567,2657.6,2657.5,0.7626]
[1727072983304,0.98117567,2657.7,2657.5,0.7626]
[1727072983502,0.98117567,2657.6,2657.5,0.7626]
[1727072984409,0.98117567,2657.6,2657.5,0.3863]
[1727072985103,1.93117567,2657.6,2657.4,42.16904673]
[1727072985306,1.15911,2657.5,2657.4,41.183]
[1727072985510,2.63074022,2657.5,2657.4,41.183]
[1727072985707,2.25443022,2657.5,2657.4,41.183]
[1727072985908,1.85923022,2657.5,2657.4,41.183]
[1727072986210,0.98105807,2657.5,2657.4,0.383]
[1727072986396,0.98105807,2657.5,2657.4,0.94677767]
[1727072986713,0.98105807,2657.5,2657.4,42.12309767]
[1727072986909,0.98105807,2657.6,2657.4,42.12309767]
[1727072987104,0.98105807,2657.6,2657.4,41.55932]
[1727072988507,0.98105807,2657.5,2657.4,41.55932]
[1727072988712,0.98105807,2657.6,2657.4,42.12315322]
[1727072988908,0.98105807,2657.6,2657.4,41.55932]
[1727072989116,0.98105807,2657.6,2657.5,0.37631]
[1727072989409,0.98105807,2657.6,2657.5,0.94013219]
[1727072989807,0.98105807,2657.7,2657.5,0.94013219]
[1727072990007,0.98105807,2657.7,2657.6,0.3976]
[1727072990208,0.98105807,2657.7,2657.6,0.7589]
[1727072990412,1.47163022,2657.8,2657.6,0.7589]
[1727072990804,0.98122442,2657.7,2657.6,0.7589]
[1727072994116,0.9813228,2657.7,2657.6,0.7589]
[1727072995215,1.47163022,2657.7,2657.6,0.7589]
[1727072995813,1.47163022,2657.8,2657.6,0.7589]
[1727072996007,0.98136318,2657.7,2657.6,1.13518]
[1727072996410,1.47163022,2657.8,2657.6,1.13518]
[1727072996610,0.98137255,2657.7,2657.6,1.13518]
[1727072996811,0.98137255,2657.7,2657.6,1.69908755]
[1727072997013,0.98137255,2657.7,2657.6,4.89758]
[1727072997220,0.98137255,2657.7,2657.6,5.46149488]
[1727072997620,1.47163022,2657.7,2657.6,5.46149488]
[1727072997916,1.47163022,2657.7,2657.6,4.89758]
[1727072998217,1.47163022,2657.7,2657.6,5.46159319]
[1727072998821,1.47163022,2657.7,2657.6,1.69919319]
[1727072999118,1.47163022,2657.7,2657.6,5.46159319]
[1727072999314,1.47163022,2657.7,2657.6,1.69919319]
[1727072999514,1.47163022,2657.7,2657.6,5.46159319]
[1727072999724,1.47163022,2657.7,2657.6,1.69919319]
[1727073000113,1.47163022,2657.7,2657.6,5.46159319]
[1727073000817,1.47163022,2657.7,2657.6,6.44763992]
[1727073001019,1.47163022,2657.7,2657.6,6.44796924]
[1727073001516,1.84982995,2657.7,2657.6,1.55051549]
[1727073001710,2.33158258,2657.7,2657.6,0.56446876]
[1727073001907,0.3774,2657.7,2657.6,1.55051549]
[1727073002422,1.47357668,2657.7,2657.6,1.55051549]
[1727073002616,1.95418258,2657.8,2657.6,1.55051549]
[1727073002826,2.33045258,2657.8,2657.7,0.56446876]
[1727073003116,2.33044258,2657.8,2657.7,0.56446876]
[1727073003519,2.33044258,2657.8,2657.6,0.98604673]
[1727073003712,1.47364782,2657.7,2657.6,0.98604673]
[1727073003916,1.47364782,2657.7,2657.6,1.55052435]
[1727073004218,1.47364782,2657.7,2657.6,6.04951435]
[1727073004921,1.47364782,2657.7,2657.6,2.28711435]
[1727073005116,1.95418258,2657.8,2657.6,2.28711435]
[1727073005311,1.47367069,2657.8,2657.7,3.58442379]
[1727073005623,1.47367069,2657.8,2657.7,3.33405706]
[1727073005820,0.98246623,2657.8,2657.7,7.62089818]
[1727073006126,0.98246623,2657.8,2657.7,12.29630822]
[1727073006515,0.98246623,2657.8,2657.7,9.08850822]
[1727073006710,0.98246623,2657.8,2657.7,4.59042822]
[1727073007023,0.37628,2657.7,2657.5,0.98693742]
[1727073007319,1.47292496,2657.6,2657.5,0.98693742]
[1727073007625,1.47292496,2657.6,2657.5,1.55139041]
[1727073007822,1.47292496,2657.6,2657.5,1.55139429]
[1727073008622,1.47292496,2657.6,2657.5,0.98693742]
[1727073009818,1.47292496,2657.6,2657.5,1.55140259]
[1727073010816,0.37629,2657.6,2657.5,0.56446517]
[1727073011323,2.34018994,2657.6,2657.5,0.56446517]
[1727073012926,0.37629,2657.6,2657.5,0.56446517]
[1727073013926,3.12147994,2657.7,2657.5,0.56444991]
[1727073014122,3.12147994,2657.7,2657.5,0.765]
[1727073014426,2.74519994,2657.7,2657.5,0.765]
[1727073015516,1.47240539,2657.6,2657.5,4.18824742]
[1727073015718,1.47240539,2657.6,2657.5,10.50827525]
[1727073015927,1.96389994,2657.8,2657.6,0.37629]
[1727073015928,0.98167152,2657.7,2657.6,0.37629]
[1727073016126,1.47240539,2657.8,2657.7,0.37628]
[1727073016324,1.47240539,2657.8,2657.7,1.92765208]
[1727073016721,1.47240539,2657.8,2657.7,1.55137208]
[1727073017028,0.37626,2657.8,2657.7,0.56442886]
[1727073017423,0.37626,2657.8,2657.6,0.98694322]
[1727073017629,0.37626,2657.8,2657.7,0.56441152]
[1727073018024,0.37626,2657.8,2657.6,0.98694322]
[1727073018025,0.37628,2657.7,2657.6,0.98694322]
[1727073018218,1.84839216,2657.7,2657.6,0.98694322]
[1727073018419,1.84839216,2657.7,2657.6,1.55136666]
[1727073019229,2.34016994,2657.8,2657.6,0.56442344]
[1727073019524,2.34016994,2657.8,2657.5,0.98694322]
[1727073019730,1.47226953,2657.6,2657.5,0.98694322]
[1727073019926,1.47226953,2657.6,2657.5,3.58505543]
[1727073020225,1.47226953,2657.6,2657.5,1.55136124]
[1727073020435,1.85736953,2657.6,2657.5,1.55136124]
[1727073021220,1.47226953,2657.6,2657.5,2.68200493]
[1727073021420,1.47226953,2657.6,2657.5,0.98694322]
[1727073021625,1.47226953,2657.6,2657.5,1.55137092]
[1727073022031,1.47226953,2657.6,2657.5,1.55137108]
[1727073022437,1.47226953,2657.6,2657.5,8.88152967]
[1727073022637,0.98160378,2657.6,2657.5,10.7921265]
[1727073023237,0.98160378,2657.6,2657.5,10.79206634]
[1727073024734,0.98160378,2657.6,2657.5,8.81052526]
[1727073024937,0.98160378,2657.6,2657.5,10.79233427]
[1727073025141,0.98160378,2657.6,2657.5,10.79233555]
[1727073026443,0.98160378,2657.6,2657.5,8.35602555]
[1727073026637,1.47226953,2657.7,2657.5,7.8418857]
[1727073026834,1.47226953,2657.7,2657.6,1.55168853]
[1727073028436,1.47226953,2657.7,2657.6,0.9871999]
[1727073028635,1.47226953,2657.7,2657.6,1.55173767]
[1727073030843,2.34016994,2657.8,2657.6,1.32513777]
[1727073031044,2.34016994,2657.8,2657.7,0.56453777]
[1727073031842,0.37628,2657.7,2657.6,0.9871999]
[1727073032167,0.37631,2657.5,2657.4,0.9871999]
[1727073032439,0.37631,2657.5,2657.3,1.87812683]
[1727073032440,0.37632,2657.4,2657.3,1.3848999]
[1727073032642,1.47150463,2657.4,2657.3,1.55175413]
[1727073032943,1.47150463,2657.4,2657.3,3.96232647]
[1727073033243,1.47150463,2657.4,2657.3,3.35672657]
[1727073033547,1.47150463,2657.5,2657.4,0.37632]
[1727073033749,1.47150463,2657.5,2657.4,1.92810084]
[1727073034744,1.47150463,2657.5,2657.4,1.55178084]
[1727073034941,1.84781463,2657.5,2657.4,1.55178084]
[1727073035137,2.33831645,2657.5,2657.4,0.56455423]
[1727073036450,0.37631,2657.5,2657.4,0.56455423]
[1727073036749,1.96200645,2657.6,2657.4,0.56455423]
[1727073036951,1.47115073,2657.6,2657.5,3.27409084]
[1727073038371,1.47115073,2657.6,2657.5,2.70953661]
[1727073038546,0.98105526,2657.6,2657.5,8.66090526]
[1727073038745,1.47115073,2657.7,2657.6,0.37629]
[1727073038746,0.98105526,2657.7,2657.6,0.37629]
[1727073038949,0.98105526,2657.7,2657.6,5.91857162]
[1727073039252,1.47115073,2657.9,2657.7,0.37628]
[1727073039253,0.98108385,2657.8,2657.7,0.37628]
[1727073039554,0.98108385,2657.9,2657.8,0.37626]
[1727073039849,0.98108385,2657.9,2657.8,5.91831691]
[1727073040148,1.35928385,2658.0,2657.9,0.37625]
[1727073040348,1.35928385,2658.0,2657.9,3.45039522]
[1727073040550,1.35928385,2658.0,2657.9,2.31981347]
[1727073040752,1.35928385,2658.0,2657.9,3.44996497]
[1727073040955,1.35928385,2658.0,2657.9,2.31981347]
[1727073041649,1.35928385,2658.0,2657.9,1.75542679]
[1727073041854,1.35928385,2658.0,2657.9,2.31950114]
[1727073042056,1.35928385,2658.0,2657.9,1.75542679]
[1727073042245,1.35928385,2658.0,2657.9,2.31950115]
[1727073042556,1.35928385,2658.0,2657.9,1.94325115]
[1727073042865,0.3782,2658.0,2657.9,1.33292436]
[1727073043152,1.35885061,2658.0,2657.9,1.33292436]
[1727073043353,1.35877322,2658.0,2657.9,1.33292436]
[1727073046645,1.35877322,2658.0,2657.9,1.71432436]
[1727073047745,1.35877322,2658.0,2657.9,1.15025]
[1727073049849,0.98057322,2658.4,2658.3,0.37619]
[1727073050047,0.98057322,2658.5,2658.3,0.56372542]
[1727073050244,1.34387322,2658.6,2658.4,0.3748]
[1727073050451,1.34387322,2658.6,2658.4,0.75098]
[1727073050646,1.34387322,2658.6,2658.4,0.7567]
[1727073050849,1.34387322,2658.6,2658.4,41.5567]
[1727073051044,1.34387322,2658.6,2658.5,0.37617]
[1727073051256,0.3633,2658.6,2658.5,0.37617]
[1727073051559,0.98057322,2658.7,2658.6,0.37615]
[1727073052158,1.34387322,2658.8,2658.6,0.37615]
[1727073052349,1.34387322,2658.8,2658.5,0.37616]
[1727073053361,0.3633,2658.8,2658.5,0.37616]
[1727073055454,0.73943,2658.8,2658.4,45.14067]
[1727073055759,0.3633,2658.8,2658.5,0.37616]
[1727073056354,0.3633,2658.8,2658.6,0.37614]
[1727073058263,0.3663,2659.0,2658.8,0.37612]
[1727073058465,0.7602,2659.0,2658.8,0.37612]
[1727073058657,0.7602,2659.0,2658.9,0.78]
[1727073060468,0.3939,2659.0,2658.9,0.78]
[1727073060659,0.98057322,2659.2,2659.1,0.37608]
[1727073060865,0.382,2659.2,2659.0,0.95]
[1727073061072,0.382,2659.2,2659.1,0.37608]
[1727073061258,0.382,2659.2,2659.0,1.69919]
[1727073061962,0.382,2659.2,2659.0,0.74919]
[1727073062168,0.382,2659.2,2658.9,3.9878]
[1727073062169,0.75808,2659.2,2658.9,3.9878]
[1727073062360,1.332,2659.2,2659.0,0.37609]
[1727073062561,1.332,2659.2,2658.9,4.3639]
[1727073062865,0.382,2659.2,2658.9,4.3639]
[1727073063069,0.382,2659.2,2659.0,0.95]
[1727073063369,3.94409923,2659.6,2659.1,0.95]
[1727073063667,0.3694,2659.7,2659.5,1.32602]
[1727073063867,0.3694,2659.7,2659.6,1.11451]
[1727073064866,0.3694,2659.7,2659.6,0.7385]
[1727073065170,0.3694,2659.7,2659.6,0.3684]
[1727073066377,0.3694,2659.7,2659.6,41.1684]
[1727073066762,0.7443,2659.7,2659.3,2.05]
[1727073066964,1.1203,2659.7,2659.3,2.05]
[1727073067166,0.376,2659.7,2659.3,2.05]
[1727073067371,4.31129923,2660.1,2659.6,3.2078]
[1727073067571,4.31129923,2660.1,2659.7,2.7831]
[1727073067879,0.3672,2660.1,2660.0,0.37595]
[1727073068283,4.31996923,2660.6,2659.9,5.2578]
[1727073068577,0.3951,2660.5,2660.3,0.37591]
[1727073068773,0.3951,2660.5,2660.4,0.3759]
[1727073068969,0.37585,2660.8,2660.4,3.7584]
[1727073069164,0.3951,2660.7,2660.5,0.37587]
[1727073069377,0.7683,2660.9,2660.4,2.05]
[1727073069378,0.3749,2660.9,2660.4,2.05]
[1727073069578,3.2078,2661.0,2660.5,0.37588]
[1727073069774,3.58361,2661.0,2660.5,0.37588]
[1727073070079,3.2078,2661.0,2660.4,2.05]
[1727073070472,0.37584,2660.8,2660.4,2.05]
[1727073070971,0.37586,2660.7,2660.4,2.05]
[1727073071171,0.76586,2660.7,2660.4,2.05]
[1727073071472,0.76357,2660.6,2660.3,0.7421]
[1727073071672,1.12807,2660.6,2660.3,0.3662]
[1727073071871,1.12808,2660.6,2660.3,0.3662]
[1727073072073,0.37588,2660.5,2659.9,6.40286]
[1727073072274,0.37588,2660.5,2660.0,0.76165]
[1727073073271,0.37588,2660.5,2660.0,0.3857]
[1727073073272,0.37589,2660.5,2660.0,0.3857]
[1727073073578,0.37589,2660.5,2660.0,0.76165]
[1727073074281,0.7522,2660.6,2660.0,0.3857]
[1727073074477,0.37588,2660.5,2660.0,0.76165]
[1727073075873,0.3759,2660.4,2660.0,0.3857]
[1727073076281,0.7522,2660.6,2660.0,0.3857]
[1727073076471,1.12808,2660.6,2660.1,0.37593]
[1727073077078,0.37589,2660.5,2660.0,0.76165]
[1727073078578,0.37589,2660.5,2660.2,2.05]
[1727073078787,7.15189923,2661.0,2660.4,5.2578]
[1727073079086,0.3786,2660.9,2660.5,0.3883]
[1727073079285,0.37585,2660.8,2660.5,0.3883]
[1727073079481,0.37586,2660.7,2660.5,0.3883]
[1727073079686,1.12326,2660.7,2660.6,40.8]
[1727073081177,0.7474,2660.7,2660.6,40.8]
[1727073081379,0.3786,2660.9,2660.6,40.8]
[1727073082180,0.37585,2660.8,2660.6,40.8]
[1727073082375,0.37585,2660.8,2660.5,0.3883]
[1727073082977,0.37585,2660.8,2660.5,41.1883]
[1727073083178,0.37585,2660.8,2660.5,0.3883]
[1727073086886,3.2078,2661.1,2660.5,0.76417]
[1727073087098,0.37585,2660.8,2660.5,0.3883]
[1727073088691,0.37583,2660.9,2660.5,0.3883]
[1727073089495,0.37584,2660.9,2660.5,0.3883]
[1727073089886,0.37584,2660.8,2660.5,0.3883]
[1727073090081,0.37583,2660.9,2660.5,0.3883]
[1727073090785,0.37584,2660.8,2660.5,0.3883]
[1727073091203,0.37583,2660.9,2660.5,0.76418]
[1727073092101,0.37583,2660.9,2660.6,40.8]
[1727073092388,0.37583,2660.9,2660.5,0.76418]
[1727073092590,0.37583,2660.9,2660.5,0.3883]
[1727073092990,0.37583,2660.9,2660.6,40.8]
[1727073093184,0.7465,2661.0,2660.6,40.8]
[1727073093185,0.37584,2660.8,2660.6,40.8]
[1727073093386,0.37585,2660.7,2660.6,40.8]
[1727073093582,0.37587,2660.6,2660.4,3.2078]
[1727073093794,0.3666,2660.5,2660.4,3.2078]
[1727073093981,0.3666,2660.5,2660.0,2.05]
[1727073093982,0.3666,2660.5,2660.1,3.2078]
[1727073094186,0.3666,2660.5,2660.1,44.0078]
[1727073094601,0.74249,2660.5,2660.2,0.774]
[1727073094792,0.74249,2660.5,2660.2,1.14993]
[1727073094793,0.3666,2660.5,2660.2,1.14993]
[1727073095097,0.3666,2660.5,2660.3,0.3691]
[1727073096293,1.09988,2660.6,2660.3,0.3691]
[1727073096294,0.724,2660.6,2660.3,0.74501]
[1727073096785,1.09987,2660.6,2660.3,0.3691]
[1727073098197,0.724,2660.6,2660.3,0.745]
[1727073098391,0.3597,2660.6,2660.3,0.745]
[1727073099795,0.3597,2660.6,2660.4,40.8]
[1727073101196,0.73558,2660.6,2660.4,40.8]
[1727073101892,0.37588,2660.5,2660.4,40.8]
[1727073102093,0.73557,2660.6,2660.4,40.8]
[1727073102396,0.3597,2660.6,2660.4,40.8]
[1727073103193,0.37588,2660.5,2660.4,40.8]
[1727073103401,1.13358,2660.5,2660.4,40.8]
[1727073104394,0.3759,2660.4,2660.2,0.774]
[1727073104893,0.3759,2660.4,2660.3,40.8]
[1727073105092,1.13359,2660.5,2660.3,40.8]
[1727073107494,0.3759,2660.4,2660.3,40.8]
[1727073108186,0.3759,2660.4,2660.2,1.724]
[1727073108608,0.3759,2660.4,2660.2,42.524]
[1727073109596,2.10887115,2660.5,2660.2,42.524]
[1727073110894,0.97528115,2660.4,2660.2,42.524]
[1727073111101,2.10887115,2660.5,2660.2,43.50255282]
[1727073111396,0.97528115,2660.4,2660.2,43.50255282]
[1727073112396,0.97528115,2660.4,2660.3,1.54211481]
[1727073112698,1.46292172,2660.4,2660.3,1.54211481]
[1727073113097,0.98313788,2660.4,2660.3,1.69171001]
[1727073113297,0.98313788,2660.4,2660.3,2.93426517]
[1727073113595,0.98313788,2660.4,2660.3,4.5760903]
[1727073113793,1.46292172,2660.4,2660.3,4.5760903]
[1727073113998,0.98353464,2660.4,2660.3,4.5760903]
[1727073114598,1.83880172,2660.5,2660.3,4.5760903]
[1727073114801,0.37588,2660.5,2660.4,3.58072786]
[1727073115003,1.85173861,2660.5,2660.4,2.59456163]
[1727073115601,1.85173861,2660.5,2660.4,2.5951274]
[1727073115805,1.47585861,2660.5,2660.4,1.12869146]
[1727073115995,2.6861423,2660.6,2660.4,2.11481172]
[1727073116301,2.6861423,2660.6,2660.5,0.56411609]
[1727073116695,2.6861423,2660.6,2660.5,41.36411609]
[1727073117494,2.6861423,2660.6,2660.5,0.56411609]
[1727073119307,0.37588,2660.5,2660.4,0.98612026]
[1727073119495,2.3264423,2660.5,2660.4,1.55026922]
[1727073119699,0.37588,2660.5,2660.4,1.55026922]
[1727073119894,0.37588,2660.5,2660.2,4.9318]
[1727073119895,0.37591,2660.3,2660.2,0.98612026]
[1727073120094,0.3766,2660.4,2659.9,0.98612026]
[1727073120309,1.96815814,2660.1,2660.0,0.56421758]
[1727073120603,1.96815814,2660.1,2660.0,1.55033784]
[1727073120806,2.71795814,2660.2,2660.0,4.90801855]
[1727073121007,2.71795814,2660.2,2660.1,3.27883784]